fUSD/lending_fUSD_20250812
["ID","MTS","AMOUNT","RATE_DAILY","PERIOD"]
[378762646,1755005432511,-682.29497109,0.00017989,2]
[378762647,1755005432521,-220.0,0.00017989,2]
[378762648,1755005432530,-9750.892612,0.0001799,2]
[378762649,1755005432572,-3671.30968664,0.0001799,2]
[378762650,1755005432585,-3291.20365106,0.0001799,2]
[378762651,1755005432633,-1033.63361294,0.0001799,2]
[378762652,1755005432644,-529.90673176,0.0001799,2]
[378762653,1755005432656,-2032.49638822,0.0001799,2]
[378762654,1755005432668,-969.19187044,0.0001799,2]
[378762655,1755005432710,-3086.62063807,0.0001799,2]
[378762656,1755005432719,-166.55833867,0.000189,2]
[378762657,1755005432728,-500.0,0.00018973,2]
[378762658,1755005432743,-500.0,0.00018973,2]
[378762659,1755005432754,-500.0,0.00018973,2]
[378762660,1755005432764,-500.0,0.00018973,2]
[378762661,1755005432774,-781.15,0.0001899,2]
[378762662,1755005432784,-781.15,0.0001899,2]
[378762663,1755005432794,-187.53463321,0.00018999,2]
[378762664,1755005432804,-297.79396398,0.00018999,2]
[378762665,1755005432814,-130981.12192747,0.00019,2]
[378762667,1755005432825,-57720.40007303,0.00019,2]
[378762669,1755005432837,-17266.92324354,0.00019,2]
[378762671,1755005432848,-6532.13940652,0.00019,2]
[378762673,1755005432859,-2127.8275588,0.00019,2]
[378762674,1755005432871,-833.73953301,0.00019,2]
[378762675,1755005432882,-498.92723845,0.00019,2]
[378762676,1755005432893,-312.13489786,0.00019,2]
[378762677,1755005432909,-494.06499999,0.00019,2]
[378762691,1755005438234,-541.29921271,0.00019,2]
[378762692,1755005438296,-5654.26317395,0.00019,2]
[378762693,1755005438373,-6621.16724704,0.00019,2]
[378762694,1755005438455,-10806.36893027,0.00019,2]
[378762860,1755005440316,-1787.5919368,0.00019,2]
[378762862,1755005440329,-17196.31058999,0.00019,2]
[378762868,1755005440377,-1959.1770511,0.00019,2]
[378762870,1755005440389,-385.58821357,0.00019,2]
[378762882,1755005440496,-11911.948,0.00019,2]
[378762884,1755005440508,-5694.70317,0.00019,2]
[378763209,1755005443547,-192193.18790821,0.00019,2]
[378763211,1755005443559,-3198.00884725,0.00019,2]
[378763213,1755005443571,-4672.47652701,0.00019,2]
[378763215,1755005443583,-6678.61447105,0.00019,2]
[378763218,1755005443692,-17819.84318,0.00019,2]
[378763512,1755005446540,-660.23319427,0.000189,2]
[378763514,1755005446550,-3309.86582429,0.00019,2]
[378763520,1755005446606,-422.3538,0.00019,2]
[378763527,1755005446666,-426.56700204,0.00019,2]
[378763529,1755005446678,-612.4991461,0.00019,2]
[378764712,1755005861228,159.0,0.000301,120]
[378764719,1755006160625,16936.24,0.00037218,30]
[378764721,1755006303197,1563.3,0.000175,120]
[378764845,1755006631534,-179.57507455,0.00018799,2]
[378764846,1755006631545,-283.9029341,0.00018846,2]
[378764848,1755006631654,-493.63177167,0.00018846,2]
[378764849,1755006631664,-158.04265877,0.000189,2]
[378764850,1755006631674,-1157.64067696,0.000189,2]
[378764851,1755006631714,-69.36536314,0.000189,2]
[378764852,1755006631725,-500.0,0.00018973,2]
[378764853,1755006631735,-500.0,0.00018973,2]
[378764854,1755006631745,-500.0,0.00018973,2]
[378764855,1755006631754,-208.45577479,0.00018999,2]
[378764856,1755006631764,-300.0,0.00018999,2]
[378764857,1755006631774,-1200.0,0.00018999,2]
[378764858,1755006631783,-4927.52335211,0.00019,2]
[378764859,1755006631795,-408.14083791,0.00019,2]
[378764860,1755006631806,-922.1152736,0.00019,2]
[378764861,1755006631892,-13585.55936784,0.00019,2]
[378764862,1755006631903,-9312.3632392,0.00019,2]
[378764863,1755006631962,-1759.24015614,0.00019,2]
[378764864,1755006631977,-480.46360534,0.00019,2]
[378764865,1755006631988,-1772.89613506,0.00019,2]
[378764866,1755006632000,-114413.27198268,0.00019,2]
[378764867,1755006632008,-10725.84272656,0.00019,2]
[378764868,1755006632018,-547372.83466964,0.00019,2]
[378764870,1755006632031,-227049.99999999,0.00019,2]
[378764872,1755006632043,-5937.5,0.00019,2]
[378765012,1755006637464,-6469.50568828,0.00019,2]
[378765013,1755006637525,-38540.8184919,0.00019,2]
[378765014,1755006637537,-1900.0,0.00019,2]
[378765015,1755006637549,-710.01654821,0.00019,2]
[378765016,1755006637560,-9293.01306957,0.00019,2]
[378765017,1755006637572,-17890.95714639,0.00019,2]
[378765018,1755006637589,-17909.03091912,0.00019,2]
[378765019,1755006637602,-33314.6893131,0.00019,2]
[378765039,1755006639508,-960.46727121,0.00019,2]
[378765040,1755006639579,-12555.88573319,0.00019,2]
[378765041,1755006639591,-3461.70295773,0.00019,2]
[378765042,1755006639640,-4410.00000003,0.00019,2]
[378765043,1755006639651,-23789.0,0.00019,2]
[378765044,1755006639663,-21869.72978865,0.00019,2]
[378765045,1755006639674,-486.91421024,0.00019,2]
[378765046,1755006639701,-723.21934277,0.00019,2]
[378765047,1755006639820,-712.5,0.00019,2]
[378765048,1755006639882,-11960.0,0.00019,2]
[378765049,1755006639893,-998.83151652,0.00019,2]
[378765050,1755006639904,-4369.99999999,0.00019,2]
[378765051,1755006639915,-2984.7781,0.00019,2]
[378765052,1755006639927,-373.90400013,0.00019,2]
[378765053,1755006639948,-7475.55612275,0.00019,2]
[378765067,1755006642805,-360458.08529091,0.00019,2]
[378765069,1755006643038,-26.51666821,0.00019,2]
[378765070,1755006643057,-40138.91401127,0.00019,2]
[378765071,1755006643067,-309.68149192,0.00019,2]
[378765072,1755006643076,-196.94189113,0.00019,2]
[378765073,1755006643085,-162.7332,0.00019,2]
[378765074,1755006643094,-460.0,0.00019,2]
[378765075,1755006643103,-187.15003,0.00019,2]
[378765076,1755006643112,-85121.7387521,0.00019046,2]
[378765077,1755006643123,-5772.9313581,0.00019046,2]
[378765078,1755006643132,-7022.50149888,0.0001998,2]
[378765079,1755006643142,-400.0,0.0002,2]
[378765080,1755006643151,-39174.1206949,0.0002013,2]
[378765081,1755006643160,-30775.0730505,0.0002013,2]
[378765082,1755006643169,-24176.8061278,0.0002013,2]
[378765083,1755006643178,-18993.2271998,0.0002013,2]
[378765084,1755006643188,-1288.1150984,0.00020137,2]
[378765085,1755006643197,-8740.9278243,0.00020372,2]
[378765086,1755006643207,-6866.8469783,0.00020372,2]
[378765087,1755006643216,-5394.5746231,0.00020372,2]
[378765088,1755006643227,-4237.9618268,0.00020372,2]
[378765089,1755006643236,-287.4173282,0.00020381,2]
[378765090,1755006643245,-250.0,0.00020508,2]
[378765091,1755006643254,-420.0,0.00020709,2]
[378765092,1755006643263,-1200.0,0.00020809,2]
[378765093,1755006643272,-187.15004,0.00021,2]
[378765095,1755006643282,-1634.32025693,0.00021134,2]
[378765096,1755006643291,-1227.00604009,0.00021899,2]
[378765097,1755006643300,-170.0,0.00022279,7]
[378765098,1755006643308,-187.15004,0.00023,2]
[378765099,1755006643317,-1000.0,0.00023013,2]
[378765100,1755006643326,-168.72,0.00023854,2]
[378765101,1755006643335,-1808.85,0.00024121,2]
[378765102,1755006643344,-735.02,0.00024447,2]
[378765103,1755006643353,-712.37669374,0.00024799,2]
[378765104,1755006643361,-167066.681661,0.000248,2]
[378765105,1755006643370,-1227.00604009,0.00024898,2]
[378765106,1755006643379,-436050.48056716,0.000249,2]
[378765114,1755006645576,-476.86,0.000249,2]
[378765115,1755006645693,-269.13139994,0.000249,2]
[378765116,1755006645705,-119420.00000001,0.000249,2]
[378765117,1755006645809,-2783.2,0.000249,2]
[378765118,1755006645885,-45625.4904702,0.000249,2]
[378765119,1755006645928,-508.1826822,0.000249,2]
[378765120,1755006645939,-9376.32159249,0.000249,2]
[378765121,1755006645949,-1579.3,0.000249,7]
[378765122,1755006645961,-3003.9,0.000249,2]
[378765123,1755006645970,-212.55867798,0.000249,2]
[378765124,1755006645984,-470.68067418,0.00025,4]
[378765125,1755006645994,-1000.0,0.0002589,2]
[378765126,1755006646004,-155.45,0.00026129,30]
[378765127,1755006646013,-151.74,0.00026206,2]
[378765128,1755006646023,-150.0,0.00027397,2]
[378765129,1755006646032,-1227.00604009,0.00027897,2]
[378765130,1755006646042,-212.55867789,0.0002845,9]
[378765131,1755006646051,-666.0,0.00028671,3]
[378765132,1755006646061,-953.14283737,0.00028766,2]
[378765134,1755006693154,1891.38944946,0.00037228,120]
[378765138,1755007594101,-173.33661199,0.00019,2]
[378765140,1755007682224,500.0,0.00027925,120]
[378765146,1755007831807,-0.00038801,0.00019,2]
[378765147,1755007831817,-180.81,0.00028502,2]
[378765148,1755007831826,-121.91960786,0.00028572,2]
[378765149,1755007831842,-655.61509791,0.00028572,2]
[378765150,1755007831852,-494.0,0.00029884,30]
[378765151,1755007831861,-518.0,0.00032199,2]
[378765152,1755007831871,-182.54271709,0.000327,2]
[378765153,1755007831881,-150.0,0.000328,2]
[378765154,1755007831890,-150.0,0.00032876,36]
[378765155,1755007831900,-155.45,0.00033499,30]
[378765156,1755007831909,-670.45874351,0.000335,5]
[378765157,1755007831926,-412.64213996,0.000335,5]
[378765158,1755007831938,-1280.89911653,0.000335,5]
[378765159,1755007831947,-1000.0,0.00033633,2]
[378765160,1755007831957,-400.0,0.00033724,2]
[378765161,1755007831967,-1200.0,0.00033724,3]
[378765162,1755007831976,-5000.0,0.00033725,2]
[378765163,1755007831987,-666.0,0.00033865,3]
[378765164,1755007831998,-338.43,0.00033888,2]
[378765165,1755007832008,-151.74,0.0003395,2]
[378765166,1755007832017,-1517.521,0.0003398,37]
[378765167,1755007832027,-172.247,0.0003398,37]
[378765168,1755007832037,-150.0,0.0003398,2]
[378765169,1755007832046,-500.0,0.00034145,2]
[378765170,1755007832055,-1000.0,0.00035,12]
[378765171,1755007832065,-180.0,0.0003517,2]
[378765172,1755007832075,-250.0,0.00035978,2]
[378765173,1755007832084,-250.0,0.00035978,2]
[378765174,1755007832094,-151.0,0.00035978,2]
[378765175,1755007832103,-32399.6272662,0.00036,2]
[378765176,1755007832118,-28546.11514772,0.00036,2]
[378765177,1755007832128,-1000.0,0.00036,9]
[378765178,1755007832139,-151.0,0.00036153,2]
[378765179,1755007832149,-560.0,0.00036208,2]
[378765180,1755007832158,-151.0,0.00036526,2]
[378765181,1755007832167,-220.0,0.00037,15]
[378765182,1755007832177,-163.0,0.00037,60]
[378765183,1755007832192,-151.0,0.00037074,2]
[378765184,1755007832203,-156.2217785,0.00037123,2]
[378765185,1755007832212,-500.0,0.00037173,5]
[378765186,1755007832221,-6267.16650703,0.00037199,7]
[378765187,1755007833734,-151.0,0.00036153,2]
[378765188,1755007833746,-9872.64186286,0.00037199,7]
[378765189,1755007833756,-25177.30692898,0.00037199,7]
[378765190,1755007833831,-3315.75994985,0.00037199,7]
[378765191,1755007833844,-993.59819669,0.00037199,7]
[378765200,1755007837696,-151.0,0.00036153,2]
[378765201,1755007837707,-243.0,0.00036153,2]
[378765202,1755007837716,-239.89867711,0.00037199,7]
[378765203,1755007837782,-1057.53297642,0.00037199,7]
[378765204,1755007837870,-888.0,0.00037199,7]
[378765394,1755007839843,-20825.08925307,0.00037199,7]
[378765395,1755007839863,-21844.602,0.00037199,7]
[378765396,1755007839955,-2031.04555728,0.00037199,7]
[378765397,1755007840185,-13828.7225771,0.00037199,7]
[378765564,1755007842850,-5925.9072,0.00037199,7]
[378765571,1755007845659,-951.16,0.00037199,7]
[378765572,1755007845671,-968.17911307,0.00037199,7]
[378765573,1755007845683,-1091.91046,0.00037199,7]
[378765574,1755007845765,-2386.7540112,0.00037199,7]
[378765575,1755007845925,-888.0,0.00037199,7]
[378765594,1755007888220,688.71,0.00037199,30]
[378765595,1755007916525,168.0,1.02e-06,2]
[378765597,1755007972389,224.85021267,0.00037199,120]
[378765598,1755008435932,8066.77,0.00037202,30]
[378765599,1755008475985,157.89903175,0.00037202,120]
[378765608,1755008882587,1000.0,0.00020899,3]
[378765609,1755008882663,1000.0,0.00019,3]
[378765620,1755009002893,1000.0,0.00020899,3]
[378765621,1755009002980,1000.0,0.00019,3]
[378765622,1755009003076,1000.0,0.00021289,3]
[378765630,1755009032046,-1200.0,0.00018999,2]
[378765631,1755009032056,-112.08505997,0.00018999,2]
[378765632,1755009032219,-276.74513007,0.00018999,2]
[378765633,1755009032228,-22.90488832,0.00019,2]
[378765634,1755009032240,-469.47929293,0.00019,2]
[378765635,1755009032330,-9671.89646309,0.00019,2]
[378765636,1755009032341,-82088.50554804,0.00019,2]
[378765637,1755009032352,-16860.64301274,0.00019,2]
[378765638,1755009032362,-302.24,0.00019,2]
[378765639,1755009032372,-304.89,0.00019,2]
[378765640,1755009032381,-302.7,0.00019,2]
[378765641,1755009032390,-374.88846551,0.00019,2]
[378765642,1755009032400,-4743.35390037,0.0002,2]
[378765643,1755009032411,-563.98216068,0.0002,2]
[378765644,1755009032420,-1026.77632932,0.0002081,2]
[378765645,1755009032431,-566.22367068,0.0002081,2]
[378765646,1755009032443,-392.66146503,0.00024,5]
[378765647,1755009032458,-342.79160002,0.00024,5]
[378765649,1755009032470,-572.5139689,0.00024,5]
[378765652,1755009032481,-3244.81728055,0.00024,5]
[378765654,1755009032493,-1000.0,0.00024446,3]
[378765657,1755009032502,-168.0,0.00026457,2]
[378765659,1755009032511,-3953.07696204,0.0002739,2]
[378765671,1755009037954,-912.727507,0.0002739,2]
[378765672,1755009038051,-40.26084978,0.0002739,2]
[378765673,1755009038061,-518.0,0.00032205,2]
[378765674,1755009038070,-203.15685045,0.00035638,120]
[378765675,1755009038083,-666.0,0.00036534,3]
[378765676,1755009038092,-640.16097006,0.00037123,2]
[378765677,1755009038101,-168.35480957,0.00037123,2]
[378765678,1755009038111,-1049.46,0.0003719,2]
[378765679,1755009038120,-176.388,0.00037201,47]
[378765680,1755009038130,-1710.672,0.00037201,47]
[378765681,1755009038139,-240.0,0.00037205,30]
[378765682,1755009038149,-11954.67930819,0.00037206,2]
[378765684,1755009038249,-798.90245439,0.00037206,2]
[378765685,1755009038262,-2704.07785532,0.00037206,2]
[378765692,1755009040005,-1354.07914196,0.00037206,2]
[378765693,1755009040107,-62736.86354119,0.00037206,2]
[378765694,1755009040117,-5362.92136328,0.00037206,2]
[378765695,1755009040126,-11347.44244859,0.00037206,7]
[378765696,1755009040137,-10217.2914491,0.00037206,7]
[378765699,1755009040204,-2089.4,0.00037206,7]
[378765700,1755009040326,-5821.59382798,0.00037206,7]
[378765701,1755009040400,-30241.16882341,0.00037206,7]
[378765751,1755009042949,-296.13443335,0.00037206,7]
[378765752,1755009043038,-1044.04224972,0.00037206,7]
[378765753,1755009043049,-5145.40242608,0.00037206,7]
[378765754,1755009043131,-1787.69404185,0.00037206,7]
[378765755,1755009043231,-24033.51968861,0.00037206,7]
[378765756,1755009043241,-150.0,0.00037223,120]
[378765757,1755009043250,-2000.0,0.00037227,120]
[378765758,1755009043260,-437.0,0.00037228,120]
[378765759,1755009043270,-1255.76995594,0.00037228,2]
[378765760,1755009043280,-200.0,0.00037228,2]
[378765761,1755009043290,-499.27614852,0.00037273,5]
[378765762,1755009043298,-500.0,0.00037273,5]
[378765763,1755009043308,-500.0,0.000373,5]
[378765764,1755009043317,-500.0,0.000373,5]
[378765765,1755009043329,-2507.711778,0.00037554,2]
[378765766,1755009043338,-200.0,0.000376,2]
[378765767,1755009043347,-216.0,0.0003771,2]
[378765768,1755009043358,-518.0,0.00037764,13]
[378765769,1755009043368,-150.0,0.00037771,120]
[378765770,1755009043377,-283.83889061,0.00037771,120]
[378765771,1755009043387,-500.0,0.00037848,5]
[378765772,1755009043396,-155.0,0.00038,120]
[378765773,1755009043404,-153.0,0.00038,120]
[378765774,1755009043414,-640.16097004,0.00038097,2]
[378765775,1755009043423,-150.0,0.00038319,120]
[378765776,1755009043433,-1000.0,0.00038458,2]
[378765777,1755009043442,-216.0,0.0003863,2]
[378765778,1755009043451,-150.0,0.00038867,120]
[378765779,1755009043460,-955.2,0.00038904,120]
[378765780,1755009043469,-158.29,0.00038925,120]
[378765781,1755009043478,-640.16097004,0.00039071,2]
[378765782,1755009043488,-591.98,0.00039073,2]
[378765783,1755009043497,-150.0,0.00039415,120]
[378765784,1755009043507,-167.06,0.00039477,2]
[378765785,1755009043515,-153.0,0.000395,120]
[378765786,1755009043525,-216.0,0.0003955,2]
[378765787,1755009043535,-150.0,0.00039963,120]
[378765788,1755009043544,-250.0,0.0004,7]
[378765789,1755009043553,-640.16097004,0.00040045,15]
[378765791,1755009043562,-4146.0,0.00040066,2]
[378765792,1755009043571,-893.0,0.00040066,2]
[378765793,1755009043582,-155.0,0.000403,120]
[378765794,1755009043591,-216.0,0.0004047,2]
[378765795,1755009043601,-150.0,0.00040511,120]
[378765796,1755009043610,-300.0,0.000407,14]
[378765797,1755009043620,-1000.0,0.00040795,2]
[378765798,1755009043631,-1400.58907818,0.00040795,15]
[378765799,1755009043640,-1570.49987458,0.00040795,13]
[378765800,1755009043649,-600.0,0.000408,14]
[378765801,1755009043658,-164.71918509,0.000408,15]
[378765805,1755009043847,-1000.0,0.00040821,120]
[378765806,1755009043860,-1000.0,0.00040821,120]
[378765807,1755009043872,-1000.0,0.00040821,120]
[378765808,1755009043881,-773.25661992,0.00040821,120]
[378765809,1755009043890,-200.0,0.00040871,2]
[378765810,1755009043899,-250.0,0.00040871,2]
[378765811,1755009043908,-40151.71954,0.00040885,3]
[378765812,1755009043918,-13897.45852007,0.00040888,30]
[378765813,1755009043930,-832.37000001,0.00040888,30]
[378765816,1755009045982,-337.82000013,0.00038958,3]
[378765817,1755009046005,-550.17999987,0.00038958,3]
[378765818,1755009046015,-1.81476913,0.00040888,30]
[378765819,1755009046028,-252899.83975979,0.00040888,30]
[378765820,1755009046037,-34517.2901,0.00040895,2]
[378765821,1755009046047,-1000.0,0.00040895,2]
[378765822,1755009046056,-150.0,0.00040895,2]
[378765823,1755009046065,-250.0,0.00040895,2]
[378765824,1755009046075,-150.0,0.00040895,31]
[378765825,1755009046086,-150.0,0.00040895,31]
[378765826,1755009046095,-114191.8981,0.00040895,2]
[378765827,1755009046105,-10000.0,0.00040895,120]
[378765828,1755009046114,-153.0,0.000409,120]
[378765829,1755009046123,-900.0,0.000409,14]
[378765830,1755009046132,-172.32041591,0.00040975,16]
[378765831,1755009046141,-5000.0,0.00040975,2]
[378765832,1755009046151,-193.31267019,0.00040985,2]
[378765833,1755009046160,-60227.57931,0.00040985,3]
[378765834,1755009046170,-500.0,0.00040994,120]
[378765835,1755009046179,-150.0,0.00040994,36]
[378765836,1755009046188,-88888.0,0.00040995,60]
[378765837,1755009046198,-2000.0,0.00041,30]
[378765838,1755009046209,-640.16097004,0.00041019,15]
[378765839,1755009046219,-150.0,0.00041034,2]
[378765840,1755009046228,-1711.64080797,0.00041038,2]
[378765841,1755009046239,-2181.50299055,0.00041041,2]
[378765842,1755009046248,-2651.36517313,0.00041045,2]
[378765843,1755009046258,-3121.22735571,0.00041048,2]
[378765844,1755009046269,-3591.08953828,0.00041052,2]
[378765845,1755009046280,-19961.81895895,0.00041055,3]
[378765846,1755009046303,-114.04081105,0.00041055,3]
[378765847,1755009046313,-764.11362699,0.00041055,2]
[378765848,1755009046324,-3296.83809387,0.00041055,2]
[378765849,1755009046335,-4725.92,0.00041058,120]
[378765850,1755009046344,-4530.81390344,0.00041058,2]
[378765851,1755009046353,-150.0,0.00041058,120]
[378765852,1755009046363,-5000.67608602,0.00041062,2]
[378765853,1755009046373,-5470.5382686,0.00041065,2]
[378765854,1755009046383,-35250.62445034,0.00041065,3]
[378765856,1755009046395,-251.253999,0.00041065,3]
[378765857,1755009046407,-294.965,0.00041065,3]
[378765859,1755009046418,-402.42133803,0.00041065,3]
[378765863,1755009046445,-2256.50974557,0.00041065,3]
[378765866,1755009046468,-298.6369,0.00039458,3]
[378765868,1755009046479,-509.73,0.00039458,3]
[378765871,1755009046495,-79.6331,0.00039458,3]
[378765872,1755009046505,-320.3669,0.00041065,3]
[378765898,1755009657887,287.83,0.00013699,2]
[378765909,1755010232201,-1000.0,0.00026787,3]
[378765910,1755010232211,-1000.0,0.00026842,3]
[378765912,1755010232221,-327.90903015,0.00027285,2]
[378765913,1755010232230,-1000.0,0.00027497,3]
[378765915,1755010232241,-1000.0,0.00029406,3]
[378765916,1755010232250,-250.0,0.00029406,2]
[378765917,1755010232259,-2.406487,0.00029406,3]
[378765918,1755010232271,-675.0,0.00029406,3]
[378765919,1755010232436,-322.593513,0.00029406,3]
[378765920,1755010232446,-500.0,0.00032006,2]
[378765921,1755010232455,-1200.0,0.00032206,3]
[378765922,1755010232465,-547.0,0.00032207,2]
[378765923,1755010232474,-242.04214462,0.00032207,2]
[378765927,1755010232691,-259.95788538,0.00032207,2]
[378765928,1755010232700,-164.24211462,0.000345,5]
[378765929,1755010232737,-260.75350338,0.000345,5]
[378765930,1755010232827,-661.04650475,0.000345,5]
[378765959,1755010238115,-2120.01936481,0.000345,5]
[378765960,1755010238261,-2304.93851244,0.000345,5]
[378765961,1755010238271,-2579.550584,0.00034724,2]
[378765962,1755010238281,-400.0,0.00034899,2]
[378765963,1755010238291,-150.0,0.000355,2]
[378765964,1755010238300,-547.0,0.00035681,9]
[378765965,1755010238309,-150.0,0.0003668,2]
[378765966,1755010238320,-150.0,0.00037205,36]
[378765967,1755010238330,-117.51090356,0.00037212,120]
[378765968,1755010238341,-344.07713644,0.00037212,120]
[378765969,1755010238351,-360.80941672,0.00037423,2]
[378765972,1755010238472,-199.19058328,0.00037423,2]
[378765974,1755010238481,-329.31341672,0.0003767,60]
[378766066,1755010240210,-24.82658328,0.0003767,60]
[378766067,1755010240219,-500.0,0.000377,120]
[378766068,1755010240228,-500.0,0.000377,120]
[378766069,1755010240238,-150.0,0.0003787,2]
[378766070,1755010240247,-666.0,0.00037937,3]
[378766071,1755010240256,-1877.60888484,0.00038002,2]
[378766072,1755010240383,-420.20030018,0.00038002,2]
[378766073,1755010240394,-1173.23081498,0.00038002,2]
[378766074,1755010240404,-163.74,0.00038051,120]
[378766075,1755010240414,-394.65,0.00038061,2]
[378766076,1755010240423,-158.29,0.00038066,120]
[378766077,1755010240433,-3925.5,0.00038079,30]
[378766078,1755010240442,-1368.538,0.00038138,50]
[378766079,1755010240451,-4997.45,0.00038138,2]
[378766080,1755010240461,-176.388,0.00038138,50]
[378766081,1755010240470,-3994.55,0.0003816,2]
[378766082,1755010240479,-500.0,0.00038175,120]
[378766083,1755010240488,-500.0,0.00038175,120]
[378766084,1755010240650,-500.0,0.00038175,120]
[378766085,1755010240660,-235.11,0.00038175,120]
[378766086,1755010240671,-182.83,0.00038237,2]
[378766087,1755010240681,-170.0,0.000383,7]
[378766089,1755010240691,-258.63014125,0.00038406,15]
[378766090,1755010240700,-218.85334746,0.00038406,15]
[378766091,1755010240709,-1108.71269638,0.00038407,2]
[378766092,1755010240721,-4598.06730362,0.00038407,2]
[378766093,1755010240731,-1000.0,0.00038437,2]
[378766094,1755010240740,-168.0,0.00038958,2]
[378766095,1755010240749,-150.0,0.0003905,2]
[378766096,1755010240758,-547.0,0.00039155,16]
[378766097,1755010240767,-354.14,0.00039514,60]
[378766098,1755010240778,-4482.9311,0.000399,2]
[378766099,1755010240788,-230.6399,0.000399,2]
[378766100,1755010240798,-275.3046,0.000399,2]
[378766101,1755010240807,-46107.70070344,0.0004,90]
[378766102,1755010240823,-1188.92077357,0.0004,90]
[378766103,1755010240835,-722.30914039,0.0004,90]
[378766104,1755010240846,-806.47815685,0.0004,90]
[378766105,1755010240857,-7514.9452538,0.0004,90]
[378766106,1755010240869,-356.79179666,0.0004,90]
[378766114,1755010243257,-888.0,0.00038907,3]
[378766115,1755010243267,-2165.2160791,0.0004,90]
[378766116,1755010243277,-299.0,0.0004,120]
[378766117,1755010243288,-436.94844089,0.0004013,5]
[378766118,1755010243392,-346.05155911,0.0004013,5]
[378766119,1755010243403,-734.81,0.00040174,2]
[378766120,1755010243412,-893.0,0.00040174,2]
[378766121,1755010243424,-610.67,0.00040206,2]
[378766122,1755010243434,-593.21,0.00040206,2]
[378766123,1755010243443,-150.0,0.0004023,2]
[378766124,1755010243452,-168.0,0.00040563,2]
[378766125,1755010243462,-846.43902094,0.00040564,2]
[378766126,1755010243471,-168.0,0.00040582,2]
[378766127,1755010243480,-168.0,0.00040855,2]
[378766128,1755010243489,-1000.0,0.0004086,2]
[378766129,1755010243498,-1000.0,0.0004086,2]
[378766130,1755010243507,-1000.0,0.0004086,2]
[378766131,1755010243517,-1000.0,0.0004086,2]
[378766132,1755010243526,-1000.0,0.0004086,2]
[378766133,1755010243536,-1000.0,0.0004086,2]
[378766134,1755010243546,-1000.0,0.0004086,2]
[378766135,1755010243557,-1000.0,0.0004086,2]
[378766136,1755010243566,-749.81942045,0.0004086,2]
[378766137,1755010243579,-250.18057955,0.0004086,2]
[378766138,1755010243589,-1000.0,0.0004086,2]
[378766139,1755010243598,-1000.0,0.0004086,2]
[378766140,1755010243608,-1000.0,0.0004086,2]
[378766141,1755010243617,-1000.0,0.0004086,2]
[378766142,1755010243630,-1000.0,0.0004086,2]
[378766143,1755010243641,-1000.0,0.0004086,2]
[378766144,1755010243650,-1000.0,0.0004086,2]
[378766145,1755010243659,-1000.0,0.0004086,2]
[378766146,1755010243669,-1000.0,0.0004086,2]
[378766147,1755010243678,-1000.0,0.0004086,2]
[378766148,1755010243687,-1000.0,0.0004086,2]
[378766149,1755010243697,-218.9278,0.0004086,2]
[378766150,1755010243707,-150.0,0.00040895,2]
[378766151,1755010243717,-150.0,0.00040895,2]
[378766152,1755010243726,-150.0,0.00040895,2]
[378766153,1755010243736,-150.0,0.00040895,2]
[378766154,1755010243745,-150.0,0.00040895,2]
[378766155,1755010243754,-150.0,0.00040895,2]
[378766156,1755010243764,-150.0,0.00040895,2]
[378766157,1755010243773,-152.88155707,0.00040895,2]
[378766158,1755010243783,-154.53379755,0.00040895,2]
[378766159,1755010243792,-159.66672837,0.00040895,2]
[378766160,1755010243802,-500.0,0.00040895,2]
[378766161,1755010243811,-500.0,0.00040895,2]